fUST/lending_fUST_20250113
["ID","MTS","AMOUNT","RATE_DAILY","PERIOD"]
[348664866,1736704232570,-501.62613012,0.00019178,2]
[348664868,1736704232580,-500.0,0.00019178,2]
[348664870,1736704232589,-500.0,0.00019178,2]
[348664872,1736704232599,-454.67206769,0.00019178,2]
[348664875,1736704232608,-500.0,0.00019178,2]
[348664877,1736704232617,-500.0,0.00019178,2]
[348664880,1736704232627,-500.0,0.00019178,2]
[348664884,1736704232636,-500.0,0.00019178,2]
[348664886,1736704232646,-500.0,0.00019178,2]
[348664889,1736704232655,-500.0,0.00019178,2]
[348664893,1736704232664,-500.0,0.00019178,2]
[348664895,1736704232674,-500.0,0.00019178,2]
[348664897,1736704232684,-500.0,0.00019178,2]
[348664899,1736704232693,-500.0,0.00019178,2]
[348664901,1736704232702,-500.0,0.00019178,2]
[348664903,1736704232712,-500.0,0.00019178,2]
[348664905,1736704232721,-500.0,0.00019178,2]
[348664907,1736704232731,-401.61160452,0.00019178,2]
[348664909,1736704232740,-188.0,0.00019178,2]
[348664911,1736704232749,-500.0,0.00019178,2]
[348664913,1736704232762,-938.81,0.00019178,2]
[348664915,1736704232771,-500.0,0.00019178,2]
[348664917,1736704232780,-500.0,0.00019178,2]
[348664919,1736704232790,-500.0,0.00019178,2]
[348664921,1736704232799,-500.0,0.00019178,2]
[348664923,1736704232808,-500.0,0.00019178,2]
[348664925,1736704232818,-320.25628146,0.00019178,2]
[348664927,1736704232827,-500.0,0.00019178,2]
[348664929,1736704232837,-500.0,0.00019178,2]
[348664931,1736704232847,-289.21,0.00019178,2]
[348664933,1736704232857,-500.0,0.00019178,2]
[348664935,1736704232866,-199.35,0.00019178,2]
[348664937,1736704232876,-500.0,0.00019178,2]
[348664939,1736704232885,-524.87098094,0.00019178,2]
[348664941,1736704232895,-500.0,0.00019178,2]
[348664943,1736704232905,-500.0,0.00019178,2]
[348664945,1736704232915,-500.0,0.00019178,2]
[348664947,1736704232924,-500.0,0.00019178,2]
[348664949,1736704232933,-561.26,0.00019178,2]
[348664951,1736704232943,-500.0,0.00019178,2]
[348664969,1736704232953,-500.0,0.00019178,2]
[348664971,1736704233109,-500.0,0.00019178,2]
[348664973,1736704233119,-500.0,0.00019178,2]
[348664975,1736704233129,-500.0,0.00019178,2]
[348664977,1736704233139,-505.62861626,0.00019178,2]
[348664979,1736704233148,-501.9037802,0.00019178,2]
[348664981,1736704233158,-798.77872987,0.00019178,2]
[348664983,1736704233171,-686.48127013,0.00019178,2]
[348664985,1736704233180,-711.27,0.00019178,2]
[348664987,1736704233190,-500.0,0.00019178,2]
[348664989,1736704233200,-500.0,0.00019178,2]
[348664991,1736704233209,-500.0,0.00019178,2]
[348664993,1736704233219,-543.96,0.00019178,2]
[348664995,1736704233229,-554.91584485,0.00019178,2]
[348664997,1736704233240,-53.73773502,0.00019178,2]
[348665000,1736704233253,-446.26226498,0.00019178,2]
[348665002,1736704233265,-500.0,0.00019178,2]
[348665004,1736704233274,-500.0,0.00019178,2]
[348665006,1736704233284,-500.0,0.00019178,2]
[348665008,1736704233296,-500.0,0.00019178,2]
[348665010,1736704233306,-668.85,0.00019178,2]
[348665012,1736704233316,-68.07221224,0.00019178,2]
[348665014,1736704233328,-431.92778776,0.00019178,2]
[348665016,1736704233338,-500.0,0.00019178,2]
[348665018,1736704233348,-67.96021224,0.00019178,2]
[348665492,1736704238398,-432.03978776,0.00019178,2]
[348665494,1736704238408,-500.0,0.00019178,2]
[348665496,1736704238418,-244.35214719,0.00019178,2]
[348665498,1736704238427,-500.0,0.00019178,2]
[348665500,1736704238438,-500.0,0.00019178,2]
[348665502,1736704238448,-500.0,0.00019178,2]
[348665504,1736704238457,-500.0,0.00019178,2]
[348665506,1736704238467,-3762.7,0.00019178,2]
[348665508,1736704238477,-500.0,0.00019178,2]
[348665510,1736704238487,-500.0,0.00019178,2]
[348665513,1736704238498,-417.52,0.00019178,2]
[348665516,1736704238509,-500.0,0.00019178,2]
[348665520,1736704238519,-500.0,0.00019178,2]
[348665523,1736704238529,-500.0,0.00019178,2]
[348665527,1736704238539,-292.06975091,0.00019178,2]
[348665530,1736704238548,-500.0,0.00019178,2]
[348665533,1736704238558,-500.0,0.00019178,2]
[348665537,1736704238568,-543.33518532,0.00019178,2]
[348665541,1736704238578,-317.88738395,0.00019178,2]
[348665544,1736704238587,-500.0,0.00019178,2]
[348665547,1736704238597,-542.57,0.00019178,2]
[348665549,1736704238607,-500.0,0.00019178,2]
[348665551,1736704238616,-500.0,0.00019178,2]
[348665553,1736704238625,-500.0,0.00019178,2]
[348665555,1736704238635,-625.03,0.00019178,2]
[348665557,1736704238644,-500.0,0.00019178,2]
[348665560,1736704238654,-500.0,0.00019178,2]
[348665562,1736704238663,-500.0,0.00019178,2]
[348665564,1736704238673,-500.0,0.00019178,2]
[348665566,1736704238682,-171.412161,0.00019178,2]
[348665568,1736704238691,-155.13,0.00019178,2]
[348665570,1736704238701,-302.75782099,0.0001919,2]
[348665572,1736704238711,-9086.2260618,0.00019191,2]
[348665574,1736704238720,-401.12469496,0.0001938,2]
[348665576,1736704238729,-421.931,0.00019443,2]
[348665578,1736704238738,-329.46218589,0.00019451,2]
[348665580,1736704238748,-285.01829108,0.00019451,2]
[348665582,1736704238757,-500.0,0.00019451,3]
[348665584,1736704238767,-500.0,0.00019452,3]
[348665586,1736704238776,-500.0,0.00019452,3]
[348665588,1736704238788,-500.0,0.00019452,3]
[348665590,1736704238802,-253.59,0.00019452,3]
[348665592,1736704238812,-500.0,0.00019452,3]
[348665594,1736704238821,-500.0,0.00019452,3]
[348665596,1736704238830,-500.0,0.00019452,3]
[348665598,1736704238840,-500.0,0.00019452,3]
[348665600,1736704238850,-500.0,0.00019452,3]
[348665602,1736704238859,-938.81,0.00019452,3]
[348665604,1736704238868,-500.0,0.00019452,3]
[348665606,1736704238879,-500.0,0.00019452,3]
[348665608,1736704238890,-191.98,0.00019452,3]
[348665610,1736704238899,-191.69,0.00019452,3]
[348665613,1736704238909,-500.0,0.00019452,3]
[348665615,1736704238918,-500.0,0.00019452,3]
[348665617,1736704238928,-500.0,0.00019452,3]
[348665619,1736704238937,-500.0,0.00019452,3]
[348665621,1736704238946,-1485.26,0.00019452,3]
[348665623,1736704238956,-711.27,0.00019452,2]
[348665625,1736704238966,-500.0,0.00019452,2]
[348665627,1736704238975,-416.61,0.00019452,3]
[348665629,1736704238985,-500.0,0.00019452,3]
[348665631,1736704238994,-543.96,0.00019452,3]
[348665633,1736704239004,-668.85,0.00019452,3]
[348665635,1736704239014,-500.0,0.00019452,3]
[348665637,1736704239023,-500.0,0.00019452,3]
[348665639,1736704239033,-256.6606807,0.00019452,3]
[348665641,1736704239042,-212.85,0.00019452,3]
[348665643,1736704239052,-3762.7,0.00019452,3]
[348665645,1736704239063,-500.0,0.00019452,3]
[348665647,1736704239072,-500.0,0.00019452,3]
[348665649,1736704239082,-441.14018586,0.00019452,3]
[348666053,1736704243347,-58.85981414,0.00019452,3]
[348666055,1736704243356,-441.14018586,0.00019452,3]
[348666362,1736704246463,-58.85981414,0.00019452,3]
[348666364,1736704246486,-542.57,0.00019452,3]
[348666366,1736704246498,-500.0,0.00019452,3]
[348666368,1736704246507,-500.0,0.00019452,3]
[348666370,1736704246517,-500.0,0.00019452,2]
[348666372,1736704246526,-500.0,0.00019452,3]
[348666374,1736704246536,-174.72,0.00019725,3]
[348666376,1736704246545,-500.0,0.00019726,3]
[348666378,1736704246555,-402.12,0.00019726,3]
[348666380,1736704246564,-500.0,0.00019726,3]
[348666382,1736704246573,-500.0,0.00019726,3]
[348666384,1736704246583,-500.0,0.00019726,3]
[348666387,1736704246592,-500.0,0.00019726,3]
[348666390,1736704246601,-500.0,0.00019726,3]
[348666392,1736704246610,-938.81,0.00019726,3]
[348666394,1736704246619,-500.0,0.00019726,3]
[348666396,1736704246628,-500.0,0.00019726,3]
[348666398,1736704246637,-500.0,0.00019726,3]
[348666400,1736704246646,-627.37,0.00019726,3]
[348666402,1736704246655,-502.36,0.00019726,3]
[348666404,1736704246665,-507.28,0.00019726,3]
[348666406,1736704246674,-711.27,0.00019726,2]
[348666407,1736704246683,-500.0,0.00019726,2]
[348666408,1736704246693,-500.0,0.00019726,3]
[348666409,1736704246702,-543.96,0.00019726,3]
[348666411,1736704246712,-668.85,0.00019726,3]
[348666412,1736704246721,-500.0,0.00019726,3]
[348666413,1736704246730,-500.0,0.00019726,3]
[348666414,1736704246739,-3762.7,0.00019726,3]
[348666415,1736704246748,-500.0,0.00019726,3]
[348666416,1736704246758,-500.0,0.00019726,3]
[348666417,1736704246767,-500.0,0.00019726,3]
[348666418,1736704246777,-500.0,0.00019726,3]
[348666419,1736704246787,-542.57,0.00019726,3]
[348666420,1736704246799,-500.0,0.00019726,3]
[348666421,1736704246808,-500.0,0.00019726,3]
[348666422,1736704246818,-500.0,0.00019726,2]
[348666423,1736704246827,-500.0,0.00019726,3]
[348666424,1736704246838,-500.0,0.00019908,2]
[348666425,1736704246848,-500.0,0.0001993,2]
[348666426,1736704246857,-325.0,0.0002,8]
[348666427,1736704246867,-500.0,0.0002,3]
[348666428,1736704246876,-897.84,0.0002,2]
[348666429,1736704246886,-500.0,0.0002,3]
[348666430,1736704246896,-500.0,0.0002,3]
[348666431,1736704246905,-294.73,0.0002,3]
[348666432,1736704246915,-500.0,0.0002,3]
[348666433,1736704246925,-938.81,0.0002,3]
[348666434,1736704246934,-311.34723638,0.0002,3]
[348666435,1736704246943,-500.0,0.0002,3]
[348666436,1736704246953,-500.0,0.0002,3]
[348666437,1736704246963,-711.27,0.0002,2]
[348666438,1736704246976,-500.0,0.0002,2]
[348666439,1736704246986,-500.0,0.0002,3]
[348666440,1736704246995,-543.96,0.0002,3]
[348666441,1736704247004,-668.85,0.0002,3]
[348666442,1736704247013,-500.0,0.0002,3]
[348666443,1736704247023,-500.0,0.0002,3]
[348666444,1736704247034,-3762.7,0.0002,3]
[348666445,1736704247043,-500.0,0.0002,3]
[348666446,1736704247052,-500.0,0.0002,3]
[348666447,1736704247062,-500.0,0.0002,3]
[348666448,1736704247072,-500.0,0.0002,3]
[348666449,1736704247082,-542.57,0.0002,3]
[348666450,1736704247091,-500.0,0.0002,3]
[348666451,1736704247101,-500.0,0.0002,3]
[348666452,1736704247110,-500.0,0.0002,2]
[348666453,1736704247120,-500.0,0.0002,3]
[348666454,1736704247129,-394.0,0.00020194,2]
[348666455,1736704247138,-153.0,0.0002024,2]
[348666456,1736704247148,-153.0,0.0002024,2]
[348666457,1736704247157,-153.0,0.0002024,2]
[348666458,1736704247167,-153.0,0.0002024,2]
[348666459,1736704247176,-153.0,0.0002024,2]
[348666460,1736704247185,-153.0,0.0002024,2]
[348666461,1736704247196,-153.0,0.0002024,2]
[348666462,1736704247206,-153.0,0.0002024,2]
[348666463,1736704247215,-153.0,0.0002024,2]
[348666464,1736704247224,-153.0,0.0002024,2]
[348666465,1736704247234,-151.0,0.00020273,2]
[348666466,1736704247243,-151.0,0.00020273,2]
[348666467,1736704247254,-260.51,0.00020273,3]
[348666468,1736704247263,-500.0,0.00020273,3]
[348666469,1736704247272,-500.0,0.00020273,3]
[348666470,1736704247282,-500.0,0.00020273,3]
[348666471,1736704247291,-938.81,0.00020273,3]
[348666472,1736704247301,-500.0,0.00020273,3]
[348666473,1736704247310,-500.0,0.00020273,3]
[348666474,1736704247320,-711.27,0.00020273,2]
[348666475,1736704247331,-500.0,0.00020273,2]
[348666476,1736704247340,-432.04,0.00020273,3]
[348666477,1736704247349,-543.96,0.00020273,3]
[348666478,1736704247359,-668.85,0.00020273,3]
[348666479,1736704247368,-500.0,0.00020273,3]
[348666480,1736704247377,-500.0,0.00020273,3]
[348666481,1736704247387,-3762.7,0.00020273,3]
[348666482,1736704247396,-500.0,0.00020273,3]
[348666483,1736704247406,-500.0,0.00020273,3]
[348666484,1736704247415,-500.0,0.00020273,3]
[348666485,1736704247424,-500.0,0.00020273,3]
[348666486,1736704247433,-500.0,0.00020273,3]
[348666487,1736704247444,-542.57,0.00020273,3]
[348666488,1736704247453,-500.0,0.00020273,3]
[348666489,1736704247463,-500.0,0.00020273,2]
[348666490,1736704247472,-500.0,0.00020273,3]
[348666491,1736704247481,-400.0,0.00020447,2]
[348666492,1736704247491,-209.634364,0.00020521,2]
[348666493,1736704247501,-278.11677831,0.00020547,5]
[348666495,1736704247510,-279.7342489,0.00020547,3]
[348666497,1736704247520,-620.55,0.00020547,3]
[348666499,1736704247530,-500.0,0.00020547,3]
[348666501,1736704247540,-500.0,0.00020547,3]
[348666503,1736704247549,-500.0,0.00020547,3]
[348666505,1736704247560,-500.0,0.00020547,3]
[348666507,1736704247569,-500.0,0.00020547,3]
[348666509,1736704247579,-500.0,0.00020547,3]
[348666511,1736704247589,-500.0,0.00020547,3]
[348666513,1736704247598,-938.81,0.00020547,3]
[348666515,1736704247608,-648.46828429,0.00020547,3]
[348666516,1736704247617,-500.0,0.00020547,3]
[348666517,1736704247627,-711.27,0.00020547,2]
[348666519,1736704247637,-500.0,0.00020547,2]
[348666521,1736704247646,-543.96,0.00020547,3]
[348666523,1736704247655,-668.85,0.00020547,3]
[348666525,1736704247664,-500.0,0.00020547,3]
[348666527,1736704247673,-500.0,0.00020547,3]
[348666529,1736704247683,-3762.7,0.00020547,3]
[348666531,1736704247693,-500.0,0.00020547,3]
[348666533,1736704247703,-349.87150124,0.00020547,3]
[348666535,1736704247712,-500.0,0.00020547,3]
[348666537,1736704247721,-500.0,0.00020547,3]
[348666551,1736704247842,-500.0,0.00020547,3]
[348666553,1736704247852,-542.57,0.00020547,3]
[348666555,1736704247861,-500.0,0.00020547,3]
[348666557,1736704247871,-500.0,0.00020547,2]
[348666559,1736704247880,-500.0,0.00020547,3]
[348666561,1736704247889,-417.25444236,0.00020737,2]
[348666563,1736704247899,-1200.0,0.00020738,2]
[348666565,1736704247908,-500.0,0.00020821,3]
[348666567,1736704247917,-500.0,0.00020821,3]
[348666569,1736704247927,-938.81,0.00020821,3]
[348666571,1736704247936,-254.46,0.00020821,3]
[348666573,1736704247947,-711.27,0.00020821,2]
[348666575,1736704247957,-500.0,0.00020821,2]
[348666577,1736704247966,-543.96,0.00020821,3]
[348666579,1736704247975,-668.85,0.00020821,3]
[348666581,1736704247985,-500.0,0.00020821,3]
[348666583,1736704247995,-500.0,0.00020821,3]
[348666585,1736704248004,-3762.7,0.00020821,3]
[348666587,1736704248013,-500.0,0.00020821,3]
[348666589,1736704248023,-500.0,0.00020821,3]
[348666591,1736704248033,-500.0,0.00020821,3]
[348666593,1736704248043,-500.0,0.00020821,3]
[348666596,1736704248054,-542.57,0.00020821,3]
[348666598,1736704248064,-158.31,0.00020821,3]
[348666600,1736704248073,-500.0,0.00020821,2]
[348666602,1736704248082,-500.0,0.00020821,3]
[348666604,1736704248092,-420.0,0.00020899,2]
[348666606,1736704248101,-732.38393735,0.00020987,2]
[348666608,1736704248111,-732.38393735,0.0002099,2]
[348666610,1736704248120,-732.38393735,0.00020997,2]
[348666612,1736704248129,-263.59007746,0.00021,2]
[348666614,1736704248139,-4796.27840998,0.00021,2]
[348666616,1736704248148,-500.0,0.00021095,3]
[348666618,1736704248157,-500.0,0.00021095,3]
[348666620,1736704248168,-938.81,0.00021095,3]
[348666622,1736704248177,-711.27,0.00021095,2]
[348666624,1736704248187,-500.0,0.00021095,2]
[348666626,1736704248197,-543.96,0.00021095,3]
[348666628,1736704248206,-668.85,0.00021095,3]
[348666630,1736704248217,-500.0,0.00021095,3]
[348666632,1736704248227,-500.0,0.00021095,3]
[348666634,1736704248236,-3762.7,0.00021095,3]
[348666636,1736704248245,-500.0,0.00021095,3]
[348666638,1736704248254,-500.0,0.00021095,3]
[348666640,1736704248263,-500.0,0.00021095,3]
[348666642,1736704248273,-542.57,0.00021095,3]
[348666644,1736704248282,-500.0,0.00021095,2]
[348666646,1736704248292,-209.634364,0.00021288,2]
[348666649,1736704248302,-500.0,0.00021369,3]
[348666651,1736704248311,-393.79,0.00021369,3]
[348666653,1736704248321,-938.81,0.00021369,3]
[348666655,1736704248330,-711.27,0.00021369,2]
[348666657,1736704248339,-500.0,0.00021369,2]
[348666658,1736704248348,-543.96,0.00021369,3]
[348666661,1736704248358,-668.85,0.00021369,3]
[348666663,1736704248367,-500.0,0.00021369,3]
[348666665,1736704248375,-173.29289805,0.00021369,3]
[348666667,1736704248384,-3762.7,0.00021369,3]
[348666668,1736704248393,-500.0,0.00021369,3]
[348666671,1736704248404,-500.0,0.00021369,3]
[348666673,1736704248414,-500.0,0.00021369,3]
[348666675,1736704248423,-542.57,0.00021369,3]
[348666676,1736704248432,-224.04,0.00021369,2]
[348666679,1736704248442,-3828.10390266,0.000214,2]
[348666680,1736704248451,-3828.10390264,0.000214,2]
[348666682,1736704248460,-3828.10390264,0.000214,2]
[348666684,1736704248469,-3828.10390264,0.000214,2]
[348666687,1736704248480,-6916.770646,0.000215,2]
[348666688,1736704248489,-325.0,0.000215,9]
[348666691,1736704248500,-938.81,0.00021643,3]
[348666693,1736704248510,-711.27,0.00021643,2]
[348666695,1736704248519,-500.0,0.00021643,2]
[348666696,1736704248529,-543.96,0.00021643,3]
[348666699,1736704248539,-668.85,0.00021643,3]
[348666700,1736704248549,-500.0,0.00021643,3]
[348666703,1736704248558,-3762.7,0.00021643,3]
[348666705,1736704248568,-500.0,0.00021643,3]
[348666707,1736704248577,-536.9431348,0.00021643,3]
[348666709,1736704248587,-542.57,0.00021643,3]
[348666711,1736704248596,-569.022,0.0002173,2]
[348666713,1736704248605,-500.0,0.0002178,2]
[348666714,1736704248615,-151.0,0.00021917,2]
[348666716,1736704248625,-151.0,0.00021917,2]
[348666719,1736704248635,-938.81,0.00021917,3]
[348666721,1736704248644,-711.27,0.00021917,2]
[348666723,1736704248654,-535.74,0.00021917,2]
[348666725,1736704248664,-543.96,0.00021917,3]
[348666727,1736704248673,-668.85,0.00021917,3]
[348666729,1736704248683,-500.0,0.00021917,3]
[348666731,1736704248692,-3762.7,0.00021917,3]
[348666733,1736704248701,-500.0,0.00021917,3]
[348666734,1736704248710,-542.57,0.00021917,3]
[348666737,1736704248720,-542.00606954,0.00022,16]
[348666739,1736704248729,-209.634364,0.00022055,2]
[348666741,1736704248738,-938.81,0.00022191,3]
[348666742,1736704248747,-711.27,0.00022191,2]
[348666745,1736704248757,-543.96,0.00022191,3]
[348666747,1736704248768,-668.85,0.00022191,3]
[348666749,1736704248778,-618.32935352,0.00022191,3]
[348666751,1736704248789,-3762.7,0.00022191,3]
[348666752,1736704248800,-500.0,0.00022191,3]
[348666755,1736704248810,-542.57,0.00022191,3]
[348666757,1736704248820,-938.81,0.00022465,3]
[348666759,1736704248829,-711.27,0.00022465,2]
[348666760,1736704248840,-543.96,0.00022465,3]
[348666762,1736704248850,-668.85,0.00022465,3]
[348666765,1736704248859,-3762.7,0.00022465,3]
[348666766,1736704248869,-500.0,0.00022465,3]
[348666768,1736704248879,-542.57,0.00022465,3]
[348666770,1736704248888,-22530.47014231,0.00022641,2]
[348666772,1736704248897,-938.81,0.00022739,3]
[348666775,1736704248907,-711.27,0.00022739,2]
[348666776,1736704248917,-543.96,0.00022739,3]
[348666779,1736704248926,-668.85,0.00022739,3]
[348666780,1736704248935,-3762.7,0.00022739,3]
[348666783,1736704248945,-500.0,0.00022739,3]
[348666785,1736704248955,-542.57,0.00022739,3]
[348666787,1736704248966,-587.0,0.00022776,2]
[348666789,1736704248976,-2000.0,0.000228,2]
[348666791,1736704248985,-2000.0,0.000228,2]
[348666792,1736704248995,-160.0,0.00022826,3]
[348666794,1736704249004,-48064.2115401,0.0002287,2]
[348666797,1736704249014,-10020.88905996,0.0002289,5]
[348666798,1736704249024,-19888.29775999,0.000229,4]
[348666801,1736704249034,-5356.71393784,0.00023,2]
[348666803,1736704249043,-1000.0,0.00023,23]
[348666804,1736704249052,-4000.0,0.00023,30]
[348666807,1736704249063,-250.0,0.00023,2]
[348666809,1736704249072,-250.0,0.00023,3]
[348666811,1736704249082,-14150.0,0.00023,30]
[348666813,1736704249092,-244.16720733,0.00023,2]
[348666815,1736704249102,-33548.48776335,0.00023,2]
[348666816,1736704249111,-261.61768164,0.00023,2]
[348666819,1736704249121,-325.0,0.00023,10]
[348666820,1736704249130,-151.0,0.00023,7]
[348666823,1736704249141,-151.0,0.00023,7]
[348666825,1736704249151,-413.368725,0.00023,2]
[348666826,1736704249161,-413.368725,0.00023,2]
[348666828,1736704249171,-151.0,0.00023,7]
[348666831,1736704249181,-151.0,0.00023,7]
[348666833,1736704249191,-7438.69753278,0.00023,3]
[348666835,1736704249201,-938.81,0.00023013,3]
[348666837,1736704249212,-711.27,0.00023013,2]
[348666839,1736704249223,-543.96,0.00023013,3]
[348666841,1736704249233,-150.23,0.00023013,2]
[348666843,1736704249244,-668.85,0.00023013,3]
[348666845,1736704249254,-3762.7,0.00023013,3]
[348666847,1736704249263,-500.0,0.00023013,3]
[348666849,1736704249274,-542.57,0.00023013,3]
[348666851,1736704249284,-150.24,0.00023013,7]
[348666853,1736704249293,-151.0,0.00023143,7]
[348666855,1736704249304,-151.0,0.00023143,7]
[348666857,1736704249314,-394.0,0.00023194,2]
[348666859,1736704249323,-151.0,0.000232,6]
[348666861,1736704249333,-938.81,0.00023287,3]
[348666863,1736704249344,-151.0,0.00023287,7]
[348666865,1736704249354,-151.0,0.00023287,7]
[348666867,1736704249364,-151.0,0.00023287,7]
[348666869,1736704249374,-151.0,0.00023287,7]
[348666871,1736704249383,-711.27,0.00023287,2]
[348666873,1736704249393,-543.96,0.00023287,3]
[348666875,1736704249402,-151.0,0.00023287,7]
[348666877,1736704249411,-668.85,0.00023287,3]
[348666879,1736704249421,-151.0,0.00023287,7]
[348666881,1736704249430,-3762.7,0.00023287,3]
[348666883,1736704249441,-151.0,0.00023287,7]
[348666885,1736704249451,-500.0,0.00023287,3]
[348666887,1736704249460,-542.57,0.00023287,3]
[348666889,1736704249470,-151.0,0.000233,10]
[348666891,1736704249479,-3300.0,0.00023328,7]
[348666893,1736704249488,-151.0,0.000234,8]
[348666895,1736704249499,-158.51,0.000234,31]
[348666897,1736704249510,-158.51,0.000234,31]
[348666899,1736704249519,-158.51,0.000234,31]
[348666901,1736704249528,-158.51,0.000234,31]
[348666903,1736704249538,-158.51,0.000234,31]
[348666905,1736704249547,-158.51,0.000234,31]
[348666907,1736704249556,-158.51,0.000234,31]
[348666909,1736704249566,-151.0,0.000234,10]
[348666911,1736704249575,-6227.35957324,0.00023517,7]
[348666913,1736704249585,-3000.0,0.00023527,2]
[348666915,1736704249594,-160.0,0.00023548,4]
[348666917,1736704249603,-151.0,0.00023558,7]
[348666919,1736704249612,-151.0,0.00023558,7]
[348666921,1736704249621,-938.81,0.00023561,3]
[348666923,1736704249631,-711.27,0.00023561,2]
[348666925,1736704249640,-543.96,0.00023561,3]
[348666928,1736704249658,-668.85,0.00023561,3]
[348666930,1736704249669,-3762.7,0.00023561,3]
[348666932,1736704249679,-500.0,0.00023561,3]
[348666934,1736704249688,-542.57,0.00023561,3]
[348666936,1736704249698,-3000.0,0.00023591,2]
[348666938,1736704249707,-151.0,0.00023612,7]
[348666940,1736704249718,-151.0,0.00023612,7]
[348666942,1736704249727,-754.14447,0.00023612,7]
[348666944,1736704249737,-754.14447,0.00023612,7]
[348666946,1736704249746,-151.0,0.00023612,7]
[348666948,1736704249756,-151.0,0.00023615,7]
[348666950,1736704249766,-151.0,0.00023615,7]
[348666952,1736704249775,-151.0,0.00023615,7]
[348666954,1736704249785,-151.0,0.00023615,7]
[348666956,1736704249798,-28448.90400353,0.00023617,2]
[348666958,1736704249808,-407.01359917,0.00023627,2]
[348666960,1736704249818,-407.01359917,0.00023627,2]
[348666962,1736704249828,-407.01359917,0.00023627,2]
[348666964,1736704249838,-407.01359917,0.00023627,2]
[348666966,1736704249847,-407.01359917,0.00023627,2]
[348666968,1736704249856,-407.01359917,0.00023627,2]
[348666970,1736704249867,-407.01359917,0.00023627,2]
[348666972,1736704249877,-407.01359917,0.00023627,2]
[348666974,1736704249887,-407.01359917,0.00023627,2]
[348666976,1736704249896,-407.01359917,0.00023627,2]
[348666978,1736704249906,-407.01359917,0.00023627,2]
[348666980,1736704249915,-407.01359917,0.00023627,2]
[348666982,1736704249924,-407.01359917,0.00023627,2]
[348666984,1736704249934,-407.01359917,0.00023627,2]
[348666986,1736704249944,-407.01359917,0.00023627,2]
[348666988,1736704249954,-407.01359917,0.00023627,2]
[348666991,1736704249963,-407.01359917,0.00023627,2]
[348666993,1736704249973,-407.01359917,0.00023627,2]
[348666995,1736704249983,-407.01359917,0.00023627,2]
[348666997,1736704249992,-407.01,0.00023627,2]
[348666999,1736704250002,-610.52039875,0.00023627,2]
[348667001,1736704250011,-610.52039875,0.00023627,2]
[348667003,1736704250021,-610.52039875,0.00023627,2]
[348667005,1736704250031,-387.84386035,0.00023627,2]
[348667018,1736704250152,-222.6765384,0.00023627,2]
[348667020,1736704250162,-610.52039875,0.00023627,2]
[348667022,1736704250172,-578.03280105,0.00023627,2]
[348667025,1736704250183,-32.4875977,0.00023627,2]
[348667027,1736704250192,-610.52039875,0.00023627,2]